[Event "Presidents Day GM-Norm 2024"]
[Site "Santa Clara"]
[Date "2024.02.19"]
[Round "7.3"]
[White "Delgado Ramirez, Neuris"]
[Black "Stearman, Josiah"]
[Result "1/2-1/2"]
[ECO "B30"]
[WhiteElo "2517"]
[BlackElo "2455"]
[Annotator "TA"]
[PlyCount "90"]
[EventDate "2024.02.13"]
[EventType "tourn"]
[EventCountry "USA"]
[SourceTitle "playchess.com"]
[Source "ChessBase"]
[SourceQuality "1"]
[TimeControl "5400+30"]

{[%evp 17,90,23,18,30,19,18,16,-5,0,0,-22,-20,-10,-18,14,0,6,-16,-14,-37,-11,-68,-69,-69,-68,-68,-53,-67,-67,-85,-68,-83,-91,-86,-67,-76,-67,-71,-59,-56,-59,-52,-54,-78,-66,-89,-80,-101,-102,-156,-163,-160,-176,-164,-146,-145,-74,-75,-82,-119,-68,-148,-150,-145,-159,-147,0,0,0,0,0,-13,0,0,0]} 1. e4 {[%emt 0:11:48]} c5 {[%emt 0:01:41]} 2. Nf3 {[%emt 0:00:07]} Nc6 {[%emt 0:00:37]} 3. Bb5 {[%emt 0:00:11]} e6 {[%emt 0:00:05]} 4. O-O {[%emt 0:01:02]} Nge7 {[%emt 0:00:41]} 5. b3 {[%emt 0:02:22]} a6 {[%emt 0:02:28]} 6. Bxc6 {[%emt 0:00:09]} Nxc6 {[%emt 0:00:04]} 7. Bb2 {[%emt 0:00:12]} d6 {[%emt 0:01:08]} 8. d4 {[%emt 0:00:42]} cxd4 {[%emt 0:01:45]} 9. Nxd4 {[%emt 0:00:10]} Bd7 {[%emt 0:00:26]} 10. c4 {[%emt 0:00:45]} Be7 {[%emt 0:00:57]} 11. Nc3 {[%emt 0:00:37]} O-O {[%emt 0:00:45]} 12. Nxc6 {[%emt 0:03:34]} Bxc6 {[%emt 0:00:15]} 13. Qg4 {[%emt 0:00:17][%cal Oc3d5]} Bf6 {[%emt 0:02:49]} 14. Rad1 {[%emt 0:00:47]} Qa5 {[%emt 0:06:51]} 15. Rd3 {[%emt 0:00:41]} Rfd8 {[%emt 0:00:32]} 16. a3 {[%emt 0:01:51]} Qg5 {[%emt 0:02:06]} 17. Qe2 {[%emt 0:01:50]} (17. Qxg5 {simplifies} Bxg5 18. Rfd1 Be7 19. a4) 17... Be5 {[%emt 0:05:40] Repels Rg3} 18. Bc1 {[%emt 0:13:28]} Qf6 {[%emt 0:01:00]} 19. Qd2 {[%emt 0:03:37]} (19. Bb2 $11) 19... Bxc3 $15 {[%emt 0:02:13]} 20. Rxc3 {[%emt 0:00:03]} Bxe4 {[%emt 0:00:13]} 21. Re3 {[%emt 0:00:47]} Bc6 {[%emt 0:01:35]} 22. Bb2 {[%emt 0:01:24]} e5 {[%emt 0:00:44]} 23. f4 {[%emt 0:01:11]} Qe7 {[%emt 0:00:12]} 24. Qf2 {[%emt 0:04:56]} f6 {[%emt 0:00:36]} 25. Qh4 {[%emt 0:00:27]} h6 {[%emt 0:05:42]} 26. Rg3 {[%emt 0:02:26]} Kh7 {[%emt 0:00:10]} 27. Bc1 {[%emt 0:02:11]} exf4 {[%emt 0:06:55]} 28. Qxf4 {[%emt 0:01:06]} Re8 {[%emt 0:03:15]} 29. Qf5+ {[%emt 0:14:26]} Kh8 {[%emt 0:00:02]} 30. Bb2 {[%emt 0:03:44][%cal Og3g7] [#] Rxg7! would now be deadly.} Rf8 {[%emt 0:02:24]} 31. b4 {[%emt 0:02:26]} Rae8 {[%emt 0:00:28]} 32. b5 {[%emt 0:00:28]} Be4 {[%emt 0:01:26]} 33. Qf2 {[%emt 0:03:35] [#]} (33. Qf4 $142) 33... axb5 $1 $17 {[%emt 0:01:19]} 34. cxb5 {[%emt 0:00:07]} Rc8 {[%emt 0:00:11]} 35. Bc3 {[%emt 0:01:48]} Qe6 {[%emt 0:00:53]} 36. a4 {[%emt 0:02:04] White is weak on the light squares} Qc4 {[%emt 0:01:03]} (36... Rc4 $142 37. a5 d5) 37. Qd2 {[%emt 0:00:14]} Qc5+ {[%emt 0:02:21]} (37... Qxa4 $2 38. Rxf6 (38. Bxf6 Rxf6 39. Rxf6 Kh7 $16) 38... Qa7+ 39. Kh1 (39. Bd4 $2 Rc1+ 40. Qxc1 Qxd4+ 41. Kh1 Rxf6 $19) 39... Rxc3 40. Rxf8+ Kh7 41. Qxc3 $18) 38. Kh1 {[%emt 0:00:21]} Qd5 {[%emt 0:00:20]} (38... Rf7 $17 39. Rc1 Qf5) 39. Qb2 {[%emt 0:02:23]} ({White should play} 39. Qxd5 $15 Bxd5 40. Rd1) 39... Rc4 {[%emt 0:01:50]} 40. h3 {[%emt 0:00:30][%cal Rc3f6] Strongly threatening Bxf6!} Qe6 {[%emt 0:02:51]} (40... Rxa4 $2 {loses.} 41. Bxf6 Rxf6 (41... gxf6 $2 {too greedy.} 42. Rxf6 Qd4 43. Rxf8+ Kh7 44. Rf7+ Kh8 45. Rc3 $18) 42. Rxf6 $18) 41. a5 {[%emt 0:01:23]} Ra4 {[%emt 0:05:34]} (41... d5 $17 {...Qd6 is the strong threat.} 42. Kh2 Kh7) 42. Ra1 $11 {[%emt 0:00:26] The position is equal.} Rxa1+ {[%emt 0:00:35]} 43. Qxa1 {[%emt 0:00:20]} Qb3 {[%emt 0:02:16]} 44. Qf1 {[%emt 0:03:01]} Rc8 {[%emt 0:07:33]} 45. Qxf6 {[%emt 0:01:59][%csl Gc3,Gg3][%cal Rf6g7]} Qb1+ {[%emt 0:00:04] Weighted Error Value: White=0.15 (very precise) /Black=0.13 (very precise) .  Mistake:       	White=3     	Black=3      Inaccurate:     	White=1     	Black=2      OK:         	White=10    	Black=14     Best:        	---       	Black=3} 1/2-1/2

[Event "Presidents Day GM-Norm 2024"]
[Site "Santa Clara"]
[Date "2024.02.19"]
[Round "7.5"]
[White "Atwell, Rose"]
[Black "Wang, Isaac"]
[Result "0-1"]
[ECO "B22"]
[WhiteElo "2104"]
[BlackElo "2316"]
[Annotator "TA"]
[PlyCount "92"]
[EventDate "2024.02.13"]
[EventType "tourn"]
[EventCountry "USA"]
[SourceTitle "playchess.com"]
[Source "ChessBase"]
[SourceQuality "1"]
[TimeControl "5400+30"]

{[%evp 14,92,22,12,41,38,60,0,0,-3,0,10,9,0,0,0,0,-33,0,0,0,-26,0,0,0,0,0,0,0,0,0,0,-1,0,0,-120,-123,-116,-111,-131,-116,-122,-115,-277,-125,-118,-125,-122,-118,-162,-141,-166,-166,-170,-125,-154,-160,-158,-174,-163,-95,-95,-101,-114,-114,-180,-166,-442,-442,-453,-453,-453,-453,-1233,-1233,-29969,-29967,-29988,-29988,-29989,-29990]} 1. e4 {[%emt 0:00:01]} c5 {[%emt 0:00:43]} 2. Nf3 {[%emt 0:00:06]} e6 {[%emt 0:00:03]} 3. c3 {[%emt 0:00:06]} d5 {[%emt 0:00:07]} 4. exd5 {[%emt 0:00:05]} Qxd5 {[%emt 0:00:36]} 5. d4 {[%emt 0:00:15]} cxd4 {[%emt 0:00:21]} 6. cxd4 {[%emt 0:01:29]} Nf6 {[%emt 0:00:54]} 7. Nc3 {[%emt 0:02:06]} Qd8 {[%emt 0:00:04]} 8. Bd3 {[%emt 0:02:36]} g6 {[%emt 0:01:27]} 9. O-O {[%emt 0:05:59][%cal Od4d5]} Bg7 {[%emt 0:00:06]} 10. Bc4 {[%emt 0:03:40]} (10. Bb5+ $14 Bd7 11. Bxd7+ Nbxd7 12. d5) 10... O-O $11 {[%emt 0:00:50] The position is equal.} 11. Ne5 {[%emt 0:06:08]} Nc6 {[%emt 0:02:40]} 12. Nxc6 {[%emt 0:06:00]} bxc6 {[%emt 0:00:15]} 13. Be3 {[%emt 0:00:29]} Nd5 {[%emt 0:00:52]} 14. Bxd5 {[%emt 0:08:10]} cxd5 {[%emt 0:00:53]} 15. Qd2 {[%emt 0:02:18]} Qh4 {[%emt 0:01:55]} 16. Na4 {[%emt 0:08:33]} e5 {[%emt 0:07:34][%cal Re5d4] Prevents Bf4} 17. f4 {[%emt 0:05:58]} exf4 {[%emt 0:09:31]} 18. Rxf4 {[%emt 0:07:14]} Qe7 {[%emt 0:01:02]} 19. Nc5 {[%emt 0:04:58]} Re8 {[%emt 0:01:01]} 20. Rf3 {[%emt 0:03:59]} Bg4 {[%emt 0:05:49]} 21. Rg3 {[%emt 0:00:28]} (21. Bg5 Qe2 22. Rf2 Qxd2 23. Rxd2 Bf5 $16) 21... h5 {[%emt 0:04:14]} 22. h3 {[%emt 0:04:00]} Bf5 {[%emt 0:08:53]} 23. Re1 {[%emt 0:02:43]} Qh4 {[%emt 0:05:00]} 24. Qf2 {[%emt 0:03:58] [#]} (24. Kh2 $1 $11 {was the only way to keep the balance.}) 24... Rxe3 $1 $17 {[%emt 0:04:27][%mdl 512]} 25. Rexe3 {[%emt 0:02:05]} (25. Rgxe3 Qxf2+) 25... Bxd4 {[%emt 0:00:27] A strong pair of Bishops.} 26. Nb3 {[%emt 0:01:53][%cal Ob3d4] Nxd4! is the strong threat.} Bxe3 {[%emt 0:00:30]} 27. Qxe3 {[%emt 0:00:08]} Qe4 {[%emt 0:03:36]} 28. Qc5 $2 {[%emt 0:02:29] [#]} (28. Nd4 $17) 28... a5 {[%emt 0:05:52]} 29. Re3 {[%emt 0:02:52]} Qb1+ {[%emt 0:04:43]} 30. Kh2 {[%emt 0:00:09]} Be4 {[%emt 0:01:23]} (30... Qxa2 $6 31. Qxd5 Rc8 32. Qd4 $11) 31. Qc6 {[%emt 0:02:28]} Rb8 {[%emt 0:02:22]} 32. Qc7 {[%emt 0:02:13]} Re8 {[%emt 0:01:17]} 33. Qc6 {[%emt 0:00:30]} Re6 {[%emt 0:01:03]} 34. Qc8+ {[%emt 0:01:02]} Kh7 {[%emt 0:01:07]} 35. Qb7 {[%emt 0:00:12]} Kg7 $40 {[%emt 0:26:23][%mdl 128] And now ...Qf1 would win. Black wants a kill. Black is more active.} (35... Qxb2 36. Qxf7+ Kh6 37. Qf8+ Qg7 38. Qb8 $17) (35... Qf1 36. Rf3 Bxf3 37. Qxf7+ Kh8 (37... Kh6 38. Qf8+ Kh7 39. Qf7+ Kh8 40. Qf8+ Kh7 41. Qf7+ $11) 38. Qf8+ Kh7 39. Qf7+ Kh6 40. Qf8+ Kh7 (40... Kg5 41. h4+ Kg4 42. gxf3+ Qxf3 43. Qxf3+ Kxf3 44. Nd4+ Ke3 45. Nxe6 $18) 41. Qf7+ $11) 36. Nc5 {[%emt 0:01:05]} Rf6 {[%emt 0:00:00]} (36... Re5 $19 37. Nxe4 dxe4 (37... Rxe4 38. Rf3 $16)) 37. Nxe4 {[%emt 0:00:37]} dxe4 {[%emt 0:00:00]} 38. Qxe4 {[%emt 0:01:15]} Qxb2 {[%emt 0:00:00][%mdl 4096] Endgame. KQR-KQR} ({Of course not} 38... Qxa2 $6 39. Qd4 $11) 39. Qd5 {[%emt 0:00:26]} (39. Qe5 $17 Qb4 (39... Qxa2 40. Rf3 $15) 40. Kh1) 39... Rf5 {[%emt 0:00:00]} 40. Qd8 {[%emt 0:00:51]} (40. Qb3 Qd4 41. Qc3 Qxc3 42. Rxc3) 40... Rf2 $19 {[%emt 0:00:00]} ({And not} 40... Qxa2 41. Qd4+ Rf6 42. Rf3 $15) 41. Qa8 {[%emt 0:00:31]} Qxa2 {[%emt 0:00:00] White must now prevent ...Qd2.} 42. Re8 {[%emt 0:00:07]} Qb2 {[%emt 0:00:00]} 43. h4 {[%emt 0:01:08] [#]} (43. Qd5 $142) 43... a4 $1 {[%emt 0:00:00] ( -> ...a3)} 44. Kh3 {[%emt 0:01:05]} (44. Qb8 Rxg2+) 44... Qc3+ {[%emt 0:00:00] Black mates.} 45. g3 {[%emt 0:00:08]} Qa1 {[%emt 0:00:00]} 46. Rg8+ {[%emt 0:02:00]} Kh7 {[%emt 0:00:00] Weighted Error Value: White=0.46/Black=0.13 (very precise) .  Loses game:     	White=1     	---        Mistake:       	White=5     	Black=2      Inaccurate:     	White=4     	Black=2      OK:         	White=14    	Black=15     Best:        	White=4     	Black=4      Brilliant:      	---       	Black=1} 0-1

[Event "Presidents Day GM-Norm 2024"]
[Site "Santa Clara"]
[Date "2024.02.19"]
[Round "8.1"]
[White "Sathish, Pranav"]
[Black "Wang, Isaac"]
[Result "1/2-1/2"]
[ECO "B40"]
[WhiteElo "2357"]
[BlackElo "2316"]
[Annotator "TA"]
[PlyCount "58"]
[EventDate "2024.02.13"]
[EventType "tourn"]
[EventCountry "USA"]
[SourceTitle "playchess.com"]
[Source "ChessBase"]
[SourceQuality "1"]
[TimeControl "5400+30"]

{[%evp 9,58,11,19,-13,-8,-90,-85,-77,-58,-79,-38,-34,-35,-48,-16,-85,-81,-83,-44,-95,-69,-70,0,7,0,-36,-26,-69,-59,-75,0,-70,-34,-64,-31,-28,-28,-66,-47,-52,-30,-58,-53,-53,7,0,0,0,0,0,0]} 1. e4 {[%emt 0:00:01]} c5 {[%emt 0:01:12]} 2. Nf3 {[%emt 0:00:07]} e6 {[%emt 0:00:47]} 3. b3 {[%emt 0:00:08]} a6 {[%emt 0:00:05]} 4. Bb2 {[%emt 0:00:03]} b5 {[%emt 0:01:50]} 5. Qe2 {[%emt 0:05:41]} Bb7 {[%emt 0:00:36]} 6. d3 {[%emt 0:00:08]} d6 {[%emt 0:01:10]} 7. e5 {[%emt 0:04:01]} (7. a4 $11) 7... dxe5 $17 {[%emt 0:08:09]} 8. Nxe5 {[%emt 0:00:09] Black is better.} Nf6 {[%emt 0:01:25]} 9. Nd2 {[%emt 0:01:56]} Nc6 {[%emt 0:01:56]} 10. Nxc6 {[%emt 0:04:46]} Bxc6 {[%emt 0:00:06]} 11. O-O-O {[%emt 0:02:32]} Be7 {[%emt 0:07:41]} 12. c4 {[%emt 0:07:15]} (12. Rg1 $11 {keeps the balance.}) 12... O-O {[%emt 0:05:47]} 13. Rg1 {[%emt 0:01:58]} Qc7 {[%emt 0:04:23]} 14. g3 {[%emt 0:00:39]} (14. g4 $15) 14... Nd7 {[%emt 0:06:06]} 15. Bg2 {[%emt 1:08:36]} Rad8 {[%emt 0:04:29]} (15... Bf6 $15 16. Bxc6 Qxc6) 16. Bxc6 $11 {[%emt 0:00:00]} Qxc6 {[%emt 0:00:03]} 17. f4 {[%emt 0:00:00]} Bf6 {[%emt 0:01:40]} 18. Qe4 {[%emt 0:00:00]} Bxb2+ {[%emt 0:01:48]} 19. Kxb2 {[%emt 0:00:00]} Qd6 {[%emt 0:00:19]} ({Black should try} 19... Qb6 $17) 20. Nf3 {[%emt 0:00:00]} (20. Qe3 $11) 20... Nf6 {[%emt 0:01:27]} (20... b4 {with more complications.} 21. d4 Qb6 22. Ng5 Nf6) 21. Qe2 {[%emt 0:00:00]} Rb8 {[%emt 0:00:24]} 22. Rge1 {[%emt 0:00:00][%cal Bg1e1,Be1e4,Be4a4][%mdl 32]} Rfc8 {[%emt 0:03:04]} 23. Ng5 {[%emt 0:00:00]} a5 {[%emt 0:04:54][%cal Ba6a5,Ba5a4][%mdl 32]} 24. Ne4 {[%emt 0:00:00]} Qd4+ {[%emt 0:00:47]} 25. Kb1 {[%emt 0:00:00]} a4 {[%emt 0:03:54]} 26. Qb2 {[%emt 0:00:00] [#] Qxd4 is the strong threat.} Nxe4 {[%emt 0:05:52]} (26... Qd8 $15) 27. Rxe4 {[%emt 0:00:00] The position is equal.} Qd7 {[%emt 0:00:12]} 28. cxb5 $1 {[%emt 0:00:00]} Rxb5 {[%emt 0:00:35]} ({Not} 28... axb3 $2 29. a4 $18) 29. Rxa4 {[%emt 0:00:00]} c4 $1 {[%emt 0:34:19] Weighted Error Value: White=0.25 (precise) /Black=0.27 (precise) .  Mistake:       	White=4     	Black=3      Inaccurate:     	White=4     	Black=5      OK:         	White=9     	Black=6      Best:        	White=1     	---        Strong:       	White=1     	Black=1} 1/2-1/2

[Event "Presidents Day GM-Norm 2024"]
[Site "Santa Clara"]
[Date "2024.02.19"]
[Round "8.2"]
[White "Deng, Henry"]
[Black "Atwell, Rose"]
[Result "0-1"]
[ECO "C43"]
[WhiteElo "2281"]
[BlackElo "2104"]
[Annotator "TA"]
[PlyCount "88"]
[EventDate "2024.02.13"]
[EventType "tourn"]
[EventCountry "USA"]
[SourceTitle "playchess.com"]
[Source "ChessBase"]
[SourceQuality "1"]
[TimeControl "5400+30"]

{[%evp 9,88,17,14,11,18,6,8,4,11,25,12,22,24,7,18,12,18,0,0,0,0,0,9,-50,-59,-55,-76,-68,-40,-87,-84,-108,-116,-102,-106,-212,-212,-204,-217,-212,-202,-201,-208,-374,-373,-394,-413,-443,-443,-495,-454,-493,-455,-504,-473,-487,-468,-553,-508,-552,-495,-578,-577,-529,-510,-820,-810,-1312,-1059,-7564,-7564,-5941,-5917,-29981,-29982,-29982,-29983,-29983,-29984,-29984,-29985]} 1. e4 {[%emt 0:00:01]} e5 {[%emt 0:00:05]} 2. Nf3 {[%emt 0:00:19]} Nf6 {[%emt 0:00:05]} 3. d4 {[%emt 0:00:43]} Nxe4 {[%emt 0:00:07]} 4. dxe5 {[%emt 0:00:31]} d5 {[%emt 0:00:05]} 5. Nbd2 {[%emt 0:00:03]} Nxd2 {[%emt 0:00:05]} 6. Bxd2 {[%emt 0:00:48]} c5 {[%emt 0:00:06]} 7. c3 {[%emt 0:01:12]} Be7 {[%emt 0:01:27]} 8. Bd3 {[%emt 0:00:49] The position is equal.} Nc6 {[%emt 0:02:59]} 9. O-O {[%emt 0:00:48]} O-O {[%emt 0:02:26]} 10. Re1 {[%emt 0:03:27]} Re8 {[%emt 0:06:01]} 11. h3 {[%emt 0:03:12]} Be6 {[%emt 0:05:26]} 12. Bf4 {[%emt 0:04:22]} Qd7 {[%emt 0:04:24]} 13. Qd2 {[%emt 0:11:41]} Bf5 {[%emt 0:12:22]} 14. Rad1 {[%emt 0:10:32]} Rad8 {[%emt 0:05:42]} 15. Ng5 {[%emt 0:10:27]} h6 {[%emt 0:11:04]} (15... Bxd3 16. Qxd3 Bxg5 17. Bxg5 $14) 16. Bxf5 {[%emt 0:04:43]} (16. e6 $11 Bxe6 (16... fxe6 17. Bxf5 Bxg5 18. Bxg5 $16) 17. Bh7+ Kh8 18. Nxe6 fxe6 19. Bc2) 16... Qxf5 $15 {[%emt 0:00:10]} 17. g4 {[%emt 0:01:02]} Qg6 {[%emt 0:06:20]} 18. Nf3 {[%emt 0:01:24]} d4 {[%emt 0:03:30]} 19. Qe2 {[%emt 0:06:43]} (19. cxd4 $15 Nxd4 20. Nxd4) 19... h5 $17 {[%emt 0:09:25] Black converts the advantage convincingly.} 20. Nd2 {[%emt 0:06:31]} dxc3 {[%emt 0:04:18]} 21. bxc3 {[%emt 0:00:06]} Rd3 {[%emt 0:00:22] Black is more active.} 22. Kh2 {[%emt 0:03:37]} (22. e6 $17 {was called for.}) 22... hxg4 $19 {[%emt 0:02:40]} (22... Rxc3 23. gxh5 Qe6 24. Qg4 $17) 23. Qxg4 {[%emt 0:01:22]} Qxg4 {[%emt 0:00:53]} 24. hxg4 {[%emt 0:00:02]} g5 {[%emt 0:01:11]} (24... Rxc3 25. Ne4 Rc2 26. Kg2 $17) 25. Be3 {[%emt 0:02:26]} Nxe5 {[%emt 0:01:11]} 26. Kg3 {[%emt 0:00:18]} (26. Kh3 {was necessary.}) 26... Red8 {[%emt 0:01:41]} ({Don't take} 26... Rxc3 27. Ne4 Ra3 28. Rd5 $19) 27. Rb1 {[%emt 0:00:57] [#]} Rxe3+ $1 {[%emt 0:06:18][%mdl 512]} 28. Rxe3 {[%emt 0:00:53]} (28. fxe3 Rxd2) 28... Rxd2 {[%emt 0:00:03]} 29. Rxb7 {[%emt 0:01:23]} Bd6 {[%emt 0:00:08]} 30. Re4 {[%emt 0:00:12]} Nd3+ {[%emt 0:02:45]} 31. Kf3 {[%emt 0:00:41]} Rxa2 {[%emt 0:00:55][%cal Og8f8]} 32. Re8+ {[%emt 0:01:05]} Kg7 {[%emt 0:00:14]} 33. Rd8 {[%emt 0:00:33]} Rxf2+ {[%emt 0:01:43]} 34. Ke4 {[%emt 0:01:09] [#]} c4 {[%emt 0:00:53] Hoping for ...Nc5+.} 35. Rxa7 {[%emt 0:01:01]} Rf4+ {[%emt 0:01:59]} 36. Kd5 {[%emt 0:23:27]} Be5 {[%emt 0:01:24]} 37. Rc8 {[%emt 0:00:00]} (37. Ra3 $142) 37... Bxc3 {[%emt 0:00:28]} 38. Rxc4 {[%emt 0:00:00]} Nb4+ {[%emt 0:00:32]} 39. Kc5 {[%emt 0:00:00] [#]} Bd4+ $1 {[%emt 0:00:17][%mdl 512]} 40. Rxd4 {[%emt 0:00:00]} Rxd4 {[%emt 0:00:06]} 41. Rxf7+ {[%emt 0:00:00]} Kxf7 {[%emt 0:00:03] Black mates.} 42. Kxd4 {[%emt 0:00:00]} Ke6 {[%emt 0:00:10]} 43. Kc4 {[%emt 0:00:00]} Nd5 {[%emt 0:00:04]} 44. Kd4 {[%emt 0:00:00]} Nf6 {[%emt 0:00:10] Weighted Error Value: White=0.85/Black=0.01 (flawless) .  Mistake:       	White=5     	---        Inaccurate:     	White=1     	Black=1      OK:         	White=9     	Black=15     Best:        	White=2     	Black=7} 0-1

[Event "Presidents Day GM-Norm 2024"]
[Site "Santa Clara"]
[Date "2024.02.19"]
[Round "8.3"]
[White "Stearman, Josiah"]
[Black "Atanasov, Anthony"]
[Result "1/2-1/2"]
[ECO "C42"]
[WhiteElo "2455"]
[BlackElo "2384"]
[Annotator "TA"]
[PlyCount "63"]
[EventDate "2024.02.13"]
[EventType "tourn"]
[EventCountry "USA"]
[SourceTitle "playchess.com"]
[Source "ChessBase"]
[SourceQuality "1"]
[TimeControl "5400+30"]

{[%evp 13,63,6,13,3,0,3,20,8,35,27,24,19,57,0,0,0,15,0,42,53,45,54,64,58,64,66,61,35,21,25,36,34,26,23,48,51,60,23,25,8,46,0,13,0,0,-4,0,-2,0,0,0,0]} 1. e4 {[%emt 0:42:15]} e5 {[%emt 0:00:10]} 2. Nf3 {[%emt 0:00:08]} Nf6 {[%emt 0:00:10]} 3. Nxe5 {[%emt 0:00:47]} d6 {[%emt 0:00:23]} 4. Nf3 {[%emt 0:00:05]} Nxe4 {[%emt 0:00:10]} 5. Nc3 {[%emt 0:00:14]} Nxc3 {[%emt 0:00:18]} 6. dxc3 {[%emt 0:00:05]} Be7 {[%emt 0:00:12]} 7. Be3 {[%emt 0:00:29]} Nd7 {[%emt 0:00:12]} 8. Qd2 {[%emt 0:00:15]} Nf6 {[%emt 0:00:16]} 9. Bd3 {[%emt 0:00:08]} O-O {[%emt 0:00:10]} 10. O-O-O {[%emt 0:00:22]} d5 {[%emt 0:00:09]} 11. Rhe1 {[%emt 0:09:07]} Bg4 {[%emt 0:00:23]} 12. Bg5 {[%emt 0:00:58]} Re8 {[%emt 0:06:09]} 13. Qf4 {[%emt 0:02:05]} ({Better is} 13. Re5 $1 $14) 13... Qd6 $11 {[%emt 0:04:34]} 14. Qa4 {[%emt 0:05:51] [#] aiming for Bxf6.} Ne4 {[%emt 0:07:37]} 15. Bxe4 {[%emt 0:04:47]} Bxg5+ {[%emt 0:02:48]} 16. Nxg5 {[%emt 0:00:25][%cal Bf3g5,Bg5e4,Be4f6][%mdl 32]} Qf4+ {[%emt 0:17:46]} 17. Kb1 {[%emt 0:03:05]} dxe4 {[%emt 0:10:39]} (17... Qxg5 $6 18. h4 (18. Bxd5 c6 $16) (18. Rxd5 $2 Qxd5 19. f3 Bf5 $19) 18... Qd8 19. Bxh7+ (19. Bxd5 $2 Bxd1 20. Rxe8+ Qxe8 $19) (19. Rxd5 $2 Qxd5 20. f3 Bf5 $19) 19... Kxh7 20. Qxg4 $16) 18. Nxe4 {[%emt 0:00:09][%cal Oe4f6] Threatens to win with Nf6+!} b5 $1 {[%emt 0:01:33] [#]} (18... Bxd1 $2 19. Nf6+ gxf6 20. Rxe8+ (20. Qxf4 $2 {too greedy.} Rxe1 21. a4 Rae8 $19) 20... Rxe8 21. Qxf4 $18) 19. Nf6+ $1 {[%emt 0:00:38]} Qxf6 {[%emt 0:00:04]} 20. Qxg4 {[%emt 0:00:14]} (20. Rxe8+ {simplifies} Rxe8 21. Qxg4 g6 22. f4) 20... Rxe1 {[%emt 0:02:02]} 21. Rxe1 {[%emt 0:00:08]} Qxf2 $14 {[%emt 0:02:18][%mdl 4096] Endgame. KQR-KQR} 22. Qe4 {[%emt 0:03:04]} Rf8 {[%emt 0:00:02]} 23. Rd1 {[%emt 0:00:17]} g6 {[%emt 0:02:05]} 24. a3 {[%emt 0:04:11]} h5 {[%emt 0:01:27]} 25. h3 {[%emt 0:00:11]} a5 {[%emt 0:07:32]} 26. Rd7 {[%emt 0:02:03]} c5 {[%emt 0:04:12]} 27. Rd5 {[%emt 0:04:35]} (27. Rc7 $14) 27... Rb8 {[%emt 0:03:35] The position is equal.} 28. Qe5 {[%emt 0:04:35]} Rc8 {[%emt 0:00:06] Hoping for ...Qf1+.} 29. Qg5 {[%emt 0:03:47]} Kh7 {[%emt 0:07:37] Black wants to play ...Qf1+.} 30. Qd2 {[%emt 0:03:44]} Qf1+ {[%emt 0:01:18]} 31. Ka2 {[%emt 0:00:10]} a4 {[%emt 0:11:01]} 32. Qd3 {[%emt 0:01:48] Weighted Error Value: White=0.12 (very precise) /Black=0.08 (flawless) .  Mistake:       	White=2     	---        Inaccurate:     	White=2     	Black=3      OK:         	White=6     	Black=9      Best:        	White=1     	Black=3      Strong:       	---       	Black=1      Brilliant:      	White=1     	---} 1/2-1/2